Cogmind - Beta 17.1 @@@ ROGUE MODE // 2026.08.25 @ 12:46:33 Player: ATOM Result: Destroyed by P-60 Hacker with Shock Rifle Performance ------------- Evolutions (4) 2000 Regions Visited (4) 800 Robots Destroyed (31) 155 Value Destroyed (960) 960 Prototype IDs (7) 140 Alien Tech Used (0) 0 Bonus (800) 800 TOTAL SCORE: 4855 Bonus ------- Registered with UFD 300 Met Optimus in HQ 500 Cogmind --------- Core Integrity 0/850 Matter 111/300 Energy 21/100 System Corruption 4% Temperature Hot (210) Movement Hovering (80) Location -6/Factory Parts ------- > --- POWER (3) -------- (None) > --- PROPULSION (3) --- Combat Airjet > --- UTILITY (7) ------ Surveybot 17 Chip Jamming Amplifier Makeshift ECM Suite (fused) Hacking Suite > --- WEAPON (2) ------- Powered Hammer > --- INVENTORY (5) ---- Enhanced Optical Array Target Analyzer Focal Shield Thermal Shield DRS Beacon (Ready) Peak State ------------ > --- POWER ------------ Nuclear Core Micro Nuclear Core Fission Core > --- PROPULSION ------- Armored Medium Treads Wheel Combat Gravmag System > --- UTILITY ---------- Large Storage Unit Deep Structural Scanner Surveybot 17 Chip Transmission Jammer Jamming Amplifier Makeshift ECM Suite Hacking Suite > --- WEAPON ----------- Shock Rifle Heavy Phase Cannon > --- INVENTORY -------- Combat Airjet Power Amplifier Improved Heat Sink Energy Well Enhanced Optical Array Advanced Signal Interpreter Launcher Guidance Computer Target Analyzer Improved Medium Armor Plating Focal Shield Thermal Shield A0-MCA's Component Scanner Remote Datajack Powered Hammer DRS Beacon [Rating: 68] Favorites ----------- Power Fission Core Engine Ion Engine Power Core Fission Core Propulsion Improved Aluminum Leg Treads Armored Treads Leg Improved Aluminum Leg Wheel Wheel Hover Unit Combat Airjet Utility Hacking Suite Device Heat Sink Storage Large Storage Unit Processor Surveybot 17 Chip Hackware Hacking Suite Protection Heavy Armor Plating Weapon Light Cannon Energy Gun Heavy Laser Energy Cannon Heavy Phase Cannon Ballistic Gun Light Assault Rifle Ballistic Cannon Light Cannon Launcher Grenade Launcher Special Weapon CPS Tube Impact Weapon Powered Hammer Build | -11 -10 -10 -8 -6 ------- Run | Yrd Mat Sub Scr Fac Slots Evolved 8 | . . . . 8 Power 2 | . . . . 2 Propulsion 1 | . . . . 1 Utility 5 | . . . . 5 Weapon . | . . . . . Parts Attached 54 | 6 15 . 8 25 Power 8 | 1 1 . 2 4 Engine 4 | 1 1 . 1 1 Core 4 | . . . 1 3 Reactor . | . . . . . Propulsion 17 | 2 6 . 5 4 Treads 5 | 2 . . 2 1 Leg 7 | . 4 . 3 . Wheel 3 | . 2 . . 1 Hover 2 | . . . . 2 Flight . | . . . . . Utility 14 | 1 3 . 1 9 Device 5 | . 1 . . 4 Storage 3 | 1 1 . 1 . Processor 2 | . . . . 2 Hackware 2 | . 1 . . 1 Protection 2 | . . . . 2 Artifact . | . . . . . Weapon 15 | 2 5 . . 8 Energy Gun 6 | 1 2 . . 3 Energy Cannon 2 | . . . . 2 Ballistic Gun 1 | 1 . . . . Ballistic Cannon 1 | . 1 . . . Launcher 2 | . 1 . . 1 Special Weapon 2 | . 1 . . 1 Impact Weapon 1 | . . . . 1 Slashing Weapon . | . . . . . Piercing Weapon . | . . . . . Special Melee Weapon . | . . . . . Unidentified Prototypes 3 | . 1 . . 2 Parts Lost 24 | . 4 . . 20 Power 5 | . . . . 5 Propulsion 8 | . 3 . . 5 Utility 5 | . . . . 5 Weapon 6 | . 1 . . 5 Highest Loss Streak 11 | . 2 . . 11 To Critical Strikes . | . . . . . Average Backups 8 | 1 4 10 11 7 Power 1 | . . 2 1 . Propulsion . | 1 . 1 . . Utility 5 | . 2 6 7 7 Weapon . | . . 1 1 . Tool/Special . | . . . . . Unused Backups 24 | . 1 . 12 11 Power 3 | . . . 3 . Propulsion 1 | . . . 1 . Utility 17 | . 1 . 6 10 Weapon 2 | . . . 2 . Tool/Special 1 | . . . . 1 Average Slot Usage (%) 81 | . 91 100 71 86 Engine 6 | . 14 14 1 3 Core 7 | . . . 12 11 Treads 7 | . 5 . 9 8 Leg 12 | . 12 28 18 . Wheel 2 | . 4 . . 4 Device 7 | . 9 . . 17 Storage 12 | . 14 14 14 5 Processor 2 | . . . . 11 Hackware 8 | . 2 14 14 6 Energy Gun 2 | . 4 14 . 5 Ballistic Gun 1 | . 5 . . . Ballistic Cannon 3 | . 9 . . . Launcher 3 | . 8 14 . . Peak Build Rating 68 | 6 14 14 23 68 Average Rating 21 | 4 6 14 18 52 On Entrance 10 | . 6 14 14 20 Avg Prop Armor Cover (%) 14 | . . . . 14 Naked Turns . | . . . . . Heaviest Build 72 | 10 22 21 30 72 Greatest Support 43 | 40 40 26 43 43 Greatest Overweight (x) 6 | . 5 . 1 6 Average Overweight (x) 1 | . . . . 4 Largest Inventory Capacity 15 | 8 10 10 15 15 Average Capacity 12 | 7 9 10 13 14 Most Carried 15 | 3 10 10 15 15 Average Carried 9 | 2 4 10 12 8 Final Capacity 15 | 8 10 10 15 5 Final Carried 14 | 3 10 10 14 5 Class Distribution -------------------- 78% | Mutant 13% | Infiltrator-Mutant 5% | Derelict-Mutant Dominant Class ---------------- Mutant | -10/Materials Mutant | -10/Subcaves Mutant | -8/Scraptown Infiltrator-Mutant | -6/Factory Resources | -11 -10 -10 -8 -6 ----------- Run | Yrd Mat Sub Scr Fac Matter Collected 922 | 244 352 . 167 159 Remotely . | . . . . . Salvage Created 773 | . 521 . . 252 Parts 53 | . 30 . . 23 Haulers Intercepted . | . . . . . Recyclers Shooed . | . . . . . Parts Field Recycled . | . . . . . Retrieved Matter . | . . . . . Parts Self-Destructed . | . . . . . Prevented . | . . . . . Parts Restored . | . . . . . Kills | -11 -10 -10 -8 -6 ------- Run | Yrd Mat Sub Scr Fac Combat Hostiles Destroyed 23 | . 17 . . 6 Guns 12 | . 9 . . 3 Cannons 8 | . 6 . . 2 AOE 3 | . 2 . . 1 Classes Destroyed 8 | . 6 . . 2 Tunneler 1 | . 1 . . . Recycler 1 | . 1 . . . Operator 3 | . 3 . . . Watcher 3 | . 3 . . . Swarmer 6 | . 6 . . . Grunt 13 | . 11 . . 2 Sentry 1 | . . . . 1 Programmer 3 | . . . . 3 Best Kill Streak 3 | . 3 . . 1 Combat Bots Only 3 | . 3 . . 1 Max Kills in Single Turn 3 | . 3 . . 1 Gunslinging . | . . . . . Exploded 2 | . 2 . . 1 Melee . | . . . . . Uniques/NPCs Destroyed . | . . . . . Combat | -11 -10 -10 -8 -6 -------- Run | Yrd Mat Sub Scr Fac Hostile Shots Fired 314 | . 103 . . 211 Missed 77 | . 31 . . 46 Hits 237 | . 72 . . 165 Projectile 237 | . 72 . . 165 Critical Strikes 6 | . . . . 6 Damage Taken 3739 | . 786 . . 2953 Core 992 | . 141 . . 851 Absorbed by Shields . | . . . . . Regen/Repaired (Parts) 146 | . 38 . . 108 Core Remaining (%) 71 | 100 . . 43 . Volleys Fired 108 | . 72 . . 36 Largest 2 | . 2 . . 2 Hottest 140 | . 120 . . 140 Shots Fired 177 | . 134 . . 43 Gun 121 | . 94 . . 27 Cannon 38 | . 28 . . 10 Launcher 9 | . 5 . . 4 Special 9 | . 7 . . 2 Kinetic 86 | . 86 . . . Thermal 73 | . 43 . . 30 Explosive 9 | . 5 . . 4 Electromagnetic 7 | . . . . 7 Robot Hit Streak 17 | . 9 . . 17 Robot Miss Streak 3 | . 3 . . 3 Penetration Max . | . . . . . Secondary Targets . | . . . . . Shots Hit Robots 116 | . 83 . . 33 Core Hits 58 | . 42 . . 16 Critical Kills . | . . . . . Critical Parts Destroyed . | . . . . . Critical Strikes 2 | . 1 . . 1 Burn 1 | . . . . 1 Blast 1 | . 1 . . . Melee Attacks 1 | . . . . 1 Impact 1 | . . . . 1 Slashing . | . . . . . Piercing . | . . . . . Sneak Attacks . | . . . . . Combat Hostiles . | . . . . . Follow-up Attacks . | . . . . . Damage Inflicted 2681 | . 1246 . . 1435 Guns 985 | . 560 . . 425 Cannons 528 | . 281 . . 247 Explosions 1030 | . 278 . . 752 Melee . | . . . . . Ramming 18 | . 7 . . 11 Kinetic 553 | . 553 . . . Thermal 1323 | . 408 . . 915 Explosive 691 | . 278 . . 413 Electromagnetic 96 | . . . . 96 Impact . | . . . . . Slashing . | . . . . . Piercing . | . . . . . Highest Corruption 5 | . 5 5 5 4 Average Corruption 4 | . 5 5 5 2 Corruption Purged . | . . . . . Corruption Blocked . | . . . . . Effects 85 | . 2 1 73 9 Message Errors 21 | . 1 . 20 . Matter Fused 19 | . . 1 17 1 Heat Flow Errors 16 | . 1 . 15 . Energy Discharges 8 | . . . 7 1 Parts Rejected 1 | . . . . 1 Parts Fused 3 | . . . 2 1 Data Loss (minor) 10 | . . . 9 1 Data Loss (major) 2 | . . . 1 1 Misfires 2 | . . . . 2 Alerts 3 | . . . 2 1 Overload Shots . | . . . . . Overflow Damage 36 | . 22 . . 14 Projectiles . | . . . . . Explosions 36 | . 22 . . 14 Melee . | . . . . . Knockbacks 4 | . 4 . . . Impact . | . . . . . Kinetic 4 | . 4 . . . Secondary . | . . . . . Self-Inflicted Damage 345 | . 43 . . 302 Shots 9 | . 2 . . 7 Rammed 5 | . . . . 5 Targets Rammed 6 | . 1 . . 5 Kicked 1 | . 1 . . . Crushed . | . . . . . Highest Temperature 666 | . 216 . 269 666 Average Temperature 113 | . 39 . 103 168 Received Heat Transfer 1026 | . 339 . . 687 Effects 19 | . . . 1 18 Shutdowns 3 | . . . . 3 Energy Bleed 2 | . . . 1 1 Short Circuit 1 | . . . . 1 Damage (minor) 2 | . . . . 2 Damage (major) 9 | . . . . 9 Damage (core) 2 | . . . . 2 Siege Activations . | . . . . . Martial Activations . | . . . . . Shielding Activations . | . . . . . Robots Disrupted . | . . . . . Combat Hostiles . | . . . . . Robots Corrupted . | . . . . . Combat Hostiles . | . . . . . Parts Fried . | . . . . . Impact Corruptions . | . . . . . Robots Melted . | . . . . . Combat Hostiles . | . . . . . Parts Melted 2 | . . . . 2 Heat Transferred 2150 | . 925 . . 1225 Parts Sabotaged . | . . . . . Parts Stolen . | . . . . . Parts Stripped . | . . . . . Power Chain Reactions 1 | . . . . 1 Alert | -11 -10 -10 -8 -6 ------- Run | Yrd Mat Sub Scr Fac Maximum Alert Level . | . . . . . Low Security (%) 100 | 100 100 . . 100 Level 1 . | . . . . . Level 2 . | . . . . . Level 3 . | . . . . . Level 4 . | . . . . . Level 5 . | . . . . . High Security . | . . . . . Max Security . | . . . . . Peak Influence 152 | . 152 . . 141 Initial . | . . . . . Average 18 | . 23 . . 11 Influence Increases 910 | . 524 . . 386 Destroy 0b10 Robot/C 460 | . 340 . . 120 Destroy 0b10 Robot/NC 40 | . 40 . . . Destroy Leader 126 | . 86 . . 40 Successful Hack 35 | . 10 . . 25 Disable Machine 105 | . 15 . . 90 Destroy Structure 129 | . 33 . . 96 Lose Combat Pursuer 15 | . . . . 15 Influence Decreases 866 | . 524 . . 342 Time Decay 542 | . 340 . . 202 Lost Part 180 | . 40 . . 140 Purge Threat 144 | . 144 . . . Squads Dispatched 12 | . 5 . . 7 Investigation 4 | . 2 . . 2 Extermination 3 | . . . . 3 Reinforcement 5 | . 3 . . 2 Assault . | . . . . . Garrison . | . . . . . Intercept . | . . . . . Searches Triggered . | . . . . . Construction Impeded . | . . . . . Haulers Reinforced 1 | . . . . 1 Active Scanning Responses . | . . . . . Cargo Convoy Interrupts . | . . . . . Stealth | -11 -10 -10 -8 -6 --------- Run | Yrd Mat Sub Scr Fac Distress Signals 2 | . 2 . . . Communications Jammed . | . . . . . Distress Signals . | . . . . . Times Spotted 42 | . 25 . . 17 Peak Tracking Total 5 | . 5 . . 5 Tactical Retreats 3 | . . . . 3 ECM-based Alert Blocks 4 | . . . . 4 Traps | -11 -10 -10 -8 -6 ------- Run | Yrd Mat Sub Scr Fac Traps Triggered 3 | . 2 . . 1 Indirectly . | . . . . . Trap Hack Attempts . | . . . . . Triggered . | . . . . . Disarmed . | . . . . . Reprogrammed . | . . . . . Reused . | . . . . . Traps Extracted . | . . . . . Installed . | . . . . . Triggered . | . . . . . Machines | -11 -10 -10 -8 -6 ---------- Run | Yrd Mat Sub Scr Fac Machines Disabled 7 | . 1 . . 6 Max in Single Turn 4 | . 1 . . 4 Machines Repaired . | . . . . . Machines Dismantled . | . . . . . Machines Sabotaged . | . . . . . Overloaded Fab Kills . | . . . . . Hacking | -11 -10 -10 -8 -6 --------- Run | Yrd Mat Sub Scr Fac Machines Accessed 18 | . 7 . . 11 Terminals 6 | . 4 . . 2 Fabricators . | . . . . . Repair Stations 6 | . 1 . . 5 Recycling Units 5 | . 2 . . 3 Scanalyzers 1 | . . . . 1 Garrison Access . | . . . . . Total Hacks 53 | . 19 . . 34 Successful 33 | . 11 . . 22 Failed 20 | . 8 . . 12 Catastrophic . | . . . . . Database Lockouts . | . . . . . Manual . | . . . . . Terminals 15 | . 12 . . 3 Fabricators . | . . . . . Repair Stations 15 | . 2 . . 13 Recycling Units 9 | . 5 . . 4 Scanalyzers 14 | . . . . 14 Garrison Access . | . . . . . Terminal Hacks 5 | . 4 . . 1 Prototype ID Bank 2 | . 1 . . 1 Terminal Index 1 | . 1 . . . Unreport Threat 1 | . 1 . . . Zone Layout 1 | . 1 . . . Fabricator Hacks . | . . . . . Repair Station Hacks 9 | . 2 . . 7 Scan Component 6 | . 1 . . 5 Repair 3 | . 1 . . 2 Recycling Unit Hacks 7 | . 5 . . 2 Report Inventory 4 | . 4 . . . Retrieve Components 3 | . 1 . . 2 Scanalyzer 12 | . . . . 12 Insert Component 4 | . . . . 4 Analyze 2 | . . . . 2 Retrieve Study 6 | . . . . 6 Garrison Access Hacks . | . . . . . Unauthorized Hacks . | . . . . . Terminals . | . . . . . Fabricators . | . . . . . Repair Stations . | . . . . . Recycling Units . | . . . . . Scanalyzers . | . . . . . Garrison Access . | . . . . . Data Cores Recovered . | . . . . . Used . | . . . . . Hacking Detections 15 | . 5 . . 10 Full Trace Events 3 | . 1 . . 2 Feedback Events . | . . . . . Feedback Blocked . | . . . . . Robot Schematics Acquired . | . . . . . Robots Built . | . . . . . Authchips . | . . . . . Time . | . . . . . Total Robot Build Rating . | . . . . . Part Schematics Acquired 2 | . . . . 2 Parts Built . | . . . . . Authchips . | . . . . . Time . | . . . . . Total Part Build Rating . | . . . . . Part Studies Acquired 6 | . . . . 6 Parts Repaired 3 | . 1 . . 2 Time 129 | . 26 . . 103 Parts Recycled . | . . . . . Recycled Matter . | . . . . . Retrieved Matter . | . . . . . Retrieved Components 20 | . 9 . . 11 Parts Scanalyzed 2 | . . . . 2 Part Schematics Acquired 2 | . . . . 2 Parts Damaged . | . . . . . Bothacking | -11 -10 -10 -8 -6 ------------ Run | Yrd Mat Sub Scr Fac Used RIF Installer . | . . . . . Robots Hacked . | . . . . . Non-combat . | . . . . . Combat . | . . . . . Robot Hacks Applied . | . . . . . Relay Couplers Released . | . . . . . Fabnet Peak Effective % . | . . . . . Robots Rewired . | . . . . . Allies Hacked . | . . . . . Hacks Repelled . | . . . . . Allies | -11 -10 -10 -8 -6 -------- Run | Yrd Mat Sub Scr Fac Total Allies . | . . . . . Largest Group . | . . . . . Highest-Rated Group . | . . . . . Highest-Rated Ally . | . . . . . Initial UFD Resources 24 | . . . . 24 Total Orders . | . . . . . Ally Attacks . | . . . . . Total Damage . | . . . . . Kills . | . . . . . Allies Corrupted . | . . . . . Allies Melted . | . . . . . Intel | -11 -10 -10 -8 -6 ------- Run | Yrd Mat Sub Scr Fac Active Infowar (turns) 1318 | . . . . 1318 Structural 1316 | . . . . 1316 Jamming 1002 | . . . . 1002 ECM 1234 | . . . . 1234 Robot Analysis Total . | . . . . . Derelict Logs Recovered . | . . . . . Drone Launches . | . . . . . Drone Recoveries . | . . . . . Exploration | -11 -10 -10 -8 -6 ------------- Run | Yrd Mat Sub Scr Fac Turns Passed 6221 | 75 2044 81 2692 1329 Spaces Moved 3462 | 45 1016 68 1725 608 Core 51 | 10 41 . . . Treads 819 | 35 198 . 498 88 Legs 1820 | . 525 68 1227 . Wheels 766 | . 252 . . 514 Hover 6 | . . . . 6 Flight . | . . . . . Fastest Speed 50 | 50 90 120 110 80 Average Speed 155 | 135 168 120 150 156 Slowest Speed 300 | 160 300 120 190 245 Overloaded Moves . | . . . . . Propulsion Burnouts . | . . . . . Robots Hopped . | . . . . . Potential Cave-ins . | . . . . . Cave-ins Triggered . | . . . . . Exploration Rate (%) 41 | 3 99 7 88 12 Regions Visited 4 Branch Regions 2 Pre-discovered Areas . | . . . . . Known Exits Taken . | . . . . . Unknown Exits Taken 4 | 1 1 1 1 . Scrap Searched 5 | . . . 5 . Spaces Dug . | . . . . . Terrain Destroyed 144 | . 29 . . 115 Melee . | . . . . . Projectile 4 | . 1 . . 3 AOE 140 | . 28 . . 112 Terrain Rammed . | . . . . . Walls Destroyed . | . . . . . Machines Disabled . | . . . . . Actions | -11 -10 -10 -8 -6 --------- Run | Yrd Mat Sub Scr Fac Total 4108 | 59 1211 67 1835 936 Wait 345 | . 72 . 56 217 Move 3458 | 44 1015 67 1724 608 Hop . | . . . . . Pick Up 83 | 9 23 . 23 28 Fast Attach 1 | . . . . 1 Attach 39 | 6 7 . 1 25 Detach . | . . . . . Swap 22 | . 11 . 7 4 Drop 37 | . 10 . 24 3 Fire 108 | . 72 . . 36 Melee 1 | . . . . 1 Ram 2 | . . . . 2 Kick 1 | . 1 . . . Crush 3 | . . . . 3 Escape Stasis 8 | . . . . 8 Rewire . | . . . . . Trap . | . . . . . Miscellaneous . | . . . . . Route ------- -11/Scrapyard -10/Materials (discovered 6 exits: [*Mat x3] / [*Min x2] / [*Sub]) -10/Subcaves -8/Scraptown -6/Factory (discovered 1 exit: [*Fac]) History --------- Turn | Location | Event 8 | -11/Scrapyard | Discovered new exit (range 15) 76 | -11/Scrapyard | Entered Materials 305 | -10/Materials | Build established: Mutant 519 | -10/Materials | Discovered new exit (range 14) 585 | -10/Materials | Core integrity fell below 50% 799 | -10/Materials | Discovered new exit (range 9) 1067 | -10/Materials | Discovered new exit (range 13) 1067 | -10/Materials | Discovered new exit (range 8) 1459 | -10/Materials | Discovered new exit (range 8) 1813 | -10/Materials | Repaired Grenade Launcher 2093 | -10/Materials | Discovered new exit (range 8) 2120 | -10/Materials | Entered Subcaves 2121 | -10/Subcaves | Approached by a straggling Scientist 2196 | -10/Subcaves | Scientist uncovered a shortcut to Scraptown 2201 | -10/Subcaves | Entered Scraptown 2320 | -8/Scraptown | Visited UFD Registry 2320 | -8/Scraptown | Registered with UFD as "Protonchassis" 2339 | -8/Scraptown | Visited Awakened 2350 | -8/Scraptown | Visited IN-MT5's Study 2559 | -8/Scraptown | Visited TADAMA 2595 | -8/Scraptown | Visited The Evicted 2640 | -8/Scraptown | Visited Red Mages 3094 | -8/Scraptown | Visited Spacefarers 3301 | -8/Scraptown | Visited Junk Repository 3353 | -8/Scraptown | Visited A0-MCA Data Center 3365 | -8/Scraptown | Given a C- rating by A0-MCA 3367 | -8/Scraptown | Found A0-MCA's Component Scanner 3406 | -8/Scraptown | Visited Junk Repository 3485 | -8/Scraptown | Visited DA-N13 Charitable Foundation 3504 | -8/Scraptown | Found DCF Scrap (30 items) 3604 | -8/Scraptown | Visited Abandonware Association 3638 | -8/Scraptown | Visited Cartography Club 3679 | -8/Scraptown | Found Surveybot 17 Chip 3975 | -8/Scraptown | Found Deep Structural Scanner 4024 | -8/Scraptown | Visited Derelict Rescue Squad 4034 | -8/Scraptown | Found DRS Beacon 4081 | -8/Scraptown | Visited Observation Area 4124 | -8/Scraptown | Visited LU-1G1's Boring Crew 4627 | -8/Scraptown | Discovered new exit (range 5) 4731 | -8/Scraptown | Met Optimus 4731 | -8/Scraptown | Accepted into 0bPrime 4891 | -8/Scraptown | Civil war broke out across Scraptown 4893 | -8/Scraptown | Entered Factory 4893 | -6/Factory | Evolved 8 slots: Power x2, Propulsion x1, Utility x5 5070 | -6/Factory | Attached CPS modules to G-50 Soldier 5072 | -6/Factory | Attached CPS modules to G-50 Soldier 5142 | -6/Factory | Lost 3 parts (1p1u1w) 5197 | -6/Factory | Build established: Derelict-Mutant 5432 | -6/Factory | Repaired Broken Mak. ECM Suite 5732 | -6/Factory | Build established: Infiltrator-Mutant 5738 | -6/Factory | Repaired Fission Core+ 5822 | -6/Factory | Lost 4 parts (1p1n2w) 6197 | -6/Factory | Discovered new exit (range 14) 6203 | -6/Factory | Core integrity fell below 50% 6209 | -6/Factory | Core integrity fell below 20% 6222 | -6/Factory | Destroyed by P-60 Hacker with Shock Rifle Last Messages --------------- 06217_ Acquired Powered Hammer. 06217_ Penetrated by Slug. 06217_ U-05 Engineer lays Concrete. 06218_ H-66 Slayer heat short circuits Phase Shifter. 06218_ K-01 Serf collects debris. 06219_ U-05 Engineer builds a Wall. 06219_ M-28 Smith repairs G-50 Soldier. 06220_ U-05 Engineer lays Concrete. 06220_ Penetrated by Slug. 06220_ G-50 Soldier suffers critical hit (Destroy). 06220_ G-50 Soldier destroyed. 06221_ H-66 Slayer heat damages Targeting Computer, Flexi-carbon Leg, Lgt. Fission Core, Flexi-carbon Leg. 06221_ U-05 Engineer lays Concrete. 06222_ K-01 Serf collects debris. 06222_ U-05 Engineer lays Concrete. 06222_ H-66 Slayer destroyed. Map ----- +----------------------------------------------------+ | ?????????????????????????????????????????????????? | | ?????????????????????????????????????????????????? | | ?????????????????????????????????????????????????? | | ?????????????????????????????????????????????????? | | ?????????????????????????????????????????????????? | | ?????????????????????????????????????????????????? | | ?????????????????????????????????????????????????? | | ?????????????????????????????????????????????????? | | ?????????????????????????????????????????????????? | | ??????????????????????????? # ???????????????? | | ????????????????????????? # ???????????????? | | ????????????????????? # ####???????????????? | | ??????????????????? + #####??????????????? | | ???????????????????? # < ######?????????????? | | ???????????? # """ # ######???????? # | | ???????????? # ; ######???????? + | | ???????????? # ; ;;######???????"" # | | ???????????? ###;###+; #####???????"" # | | ???????????? ## #####???????"" # | | ???????????? ## ######??? # | | ????????????#+## ##### # | | ????????????# ## ##### # | | ????????????# T# g ############+## | | ????????????# # !k p ##### # | | ???????????????#######+; ;;### # | | ???????????????###### [%@%m !# # # """ | | ???????????????#### ; g [ ! # ### """ | | ???????????????###### ;!|! # # """ | | ???????????????###### ;;!!! # ### | | ???????????????###### ;; ####### """ | | ?????????????? ### ; ############ """ | | ?????????????? ### " u """ | | ?????????????? "T u | | ?????????????? ### | | ?????????????? ### ############+####### | | ?????????????? #######o####### ! ########+## | | ?????????????? #### ### # # | | ????????????????### """"" ### """ """ # """ # | | ????????????????### ""T"" ### """ """ # """ # | | ?????????????????????????? ### """ """ # """ "" # | | ?????????????????????????? ### # """# | | ?????????????????????????? ### + R"# | | ?????????????????????????? ### # """# | | ?????????????????????????? ############# # | | ?????????????????????????? ####################### | | ??????????????????????????######################## | | | | | | | | | +----------------------------------------------------+ Best States ------------- Heat Dissipation 51 Energy Generation 39 Energy Capacity 500 Matter Stores 300 Matter Capacity 300 Sight Range 16 Terrain Scan Density 1210 ECM Strength 2 Jamming Range 12 Armor Coverage 600 Evasion (%) 55 Recoil Reduction 2 Offensive Hacking 10 Item Schematics ----------------- Adv. Signal Interpreter | -6/Factory | Scanalyzed Launcher Guidance Computer | -6/Factory | Scanalyzed Robot Schematics ------------------ None Fabricated ------------ Nothing Repaired ---------- Grenade Launcher | 36% | -10/Materials Mak. ECM Suite | 61% | -6/Factory | Broken Fission Core | 5% | -6/Factory Studied --------- Lgt. Deuterium Engine | -6/Factory | Hacked Arm. Treads | -6/Factory | Hacked Imp. Treads | -6/Factory | Hacked Fission Core | -6/Factory | Hacked Hvy. Laser | -6/Factory | Hacked Wheel | -6/Factory | Hacked Alien Tech Used ----------------- None Achievements -------------- No Room For Error Uncivil War Challenges ------------ None Game ------ Seed SeismicTitaniumBeacon Manual? 0 Play Time 00:59:13 Cumulative 32.4 hours Start 2026.08.25 @ 11:34:45 End 2026.08.25 @ 12:46:33 Sessions 1 Manual Loads 0 Difficulty Rogue Special Mode None Game No. 48 Rogue 48 Adventurer 0 Explorer 0 Win Type - Total 0 Types 0/0/0/0/0/0/0/0/0/0 Lore% 17 Gallery% 21 Achievement% 18 Wizard Run 0 Options --------- Layout 1 ASCII 0 Keyboard 0 Movement Mouse Keybinds 0 Fullscreen 1 Font 16/SmallcapsGlow Map View 50x40 Zoom Use 0% Tactical HUD 1 Map Filters NONE Filters NONE Steam SD RUN: fce2f31b-365c-43b9-8ca5-38e5e43f79eb